[Event "*** Titled Tuesday Blitz"]
[Site "Chess.com"]
[Date "2021.02.16"]
[Round "2"]
[White "vugarrasulov"]
[Black "Rap_woyska"]
[Result "0-1"]
[WhiteElo "2768"]
[BlackElo "2517"]
[TimeControl "180+1"]
[EndTime "10:19:51 PST"]
[Termination "Rap_woyska won on time"]

1. e4 {[%clk 0:03:00.9]} 1... e6 {[%clk 0:02:37.2]} 2. d4 {[%clk 0:02:57.2]}
2... d5 {[%clk 0:02:38.1]} 3. Nd2 {[%clk 0:02:56.7]} 3... Be7 {[%clk 0:02:38.2]}
4. g3 {[%clk 0:02:55.4]} 4... dxe4 {[%clk 0:02:34.8]} 5. Nxe4 {[%clk 0:02:56.3]}
5... Nf6 {[%clk 0:02:35.7]} 6. Bg2 {[%clk 0:02:46.5]} 6... O-O {[%clk
0:02:21.6]} 7. Ne2 {[%clk 0:02:43.7]} 7... Nbd7 {[%clk 0:02:17.8]} 8. O-O {[%clk
0:02:41.1]} 8... Nxe4 {[%clk 0:02:14.6]} 9. Bxe4 {[%clk 0:02:42]} 9... Nf6
{[%clk 0:02:12.8]} 10. Bg2 {[%clk 0:02:38.9]} 10... c5 {[%clk 0:02:13.1]} 11. c3
{[%clk 0:02:32.3]} 11... Qb6 {[%clk 0:02:09.6]} 12. dxc5 {[%clk 0:02:28.1]}
12... Bxc5 {[%clk 0:02:08.8]} 13. b4 {[%clk 0:02:15.9]} 13... Be7 {[%clk
0:02:08.6]} 14. Be3 {[%clk 0:02:15.1]} 14... Qc7 {[%clk 0:02:07.8]} 15. a4
{[%clk 0:02:14.6]} 15... e5 {[%clk 0:02:05.4]} 16. b5 {[%clk 0:02:04.1]} 16...
Bg4 {[%clk 0:02:00.7]} 17. h3 {[%clk 0:02:02.8]} 17... Be6 {[%clk 0:01:58.4]}
18. a5 {[%clk 0:01:57.9]} 18... Rfd8 {[%clk 0:01:53.3]} 19. Qc2 {[%clk
0:01:57.3]} 19... Nd5 {[%clk 0:01:53.4]} 20. Bxa7 {[%clk 0:01:45.7]} 20... Qd7
{[%clk 0:01:18.8]} 21. b6 {[%clk 0:01:33.4]} 21... Bxh3 {[%clk 0:01:14.7]} 22.
Qe4 {[%clk 0:01:28.1]} 22... Bxg2 {[%clk 0:01:13.1]} 23. Qxg2 {[%clk 0:01:26.3]}
23... Qc6 {[%clk 0:00:58.8]} 24. Rfd1 {[%clk 0:01:18.2]} 24... Bc5 {[%clk
0:00:45.8]} 25. c4 {[%clk 0:01:17.6]} 25... Nb4 {[%clk 0:00:39.4]} 26. Nc3
{[%clk 0:01:07]} 26... Bd4 {[%clk 0:00:31.4]} 27. Nd5 {[%clk 0:00:43.9]} 27...
Qxc4 {[%clk 0:00:29.2]} 28. Ne7+ {[%clk 0:00:36.5]} 28... Kf8 {[%clk 0:00:28.1]}
29. Rac1 {[%clk 0:00:34.5]} 29... Qe6 {[%clk 0:00:27.7]} 30. Qxb7 {[%clk
0:00:18]} 30... Qxe7 {[%clk 0:00:28.1]} 31. Qe4 {[%clk 0:00:15.9]} 31... Qf6
{[%clk 0:00:24.3]} 32. Rd2 {[%clk 0:00:14.2]} 32... h5 {[%clk 0:00:16.2]} 33.
Kg2 {[%clk 0:00:13.9]} 33... g6 {[%clk 0:00:15.8]} 34. Rc7 {[%clk 0:00:13.8]}
34... Kg7 {[%clk 0:00:15.2]} 35. Rc4 {[%clk 0:00:11.9]} 35... Nd5 {[%clk
0:00:15.1]} 36. Rdc2 {[%clk 0:00:09.4]} 36... Ne7 {[%clk 0:00:13.3]} 37. Rc7
{[%clk 0:00:09.2]} 37... Nf5 {[%clk 0:00:13]} 38. R7c6 {[%clk 0:00:07.2]} 38...
Qg5 {[%clk 0:00:13]} 39. Rc7 {[%clk 0:00:04.5]} 39... h4 {[%clk 0:00:13.2]} 40.
g4 {[%clk 0:00:04.4]} 40... Nh6 {[%clk 0:00:12]} 41. f3 {[%clk 0:00:04.9]} 41...
Ng8 {[%clk 0:00:11.4]} 42. Re2 {[%clk 0:00:02.7]} 42... Nf6 {[%clk 0:00:11.6]}
43. Qc6 {[%clk 0:00:02.9]} 43... h3+ {[%clk 0:00:11.1]} 44. Kxh3 {[%clk
0:00:03.1]} 44... Rh8+ {[%clk 0:00:11.3]} 45. Kg2 {[%clk 0:00:03.7]} 45... Qf4
{[%clk 0:00:11.7]} 46. Rxf7+ {[%clk 0:00:03.8]} 46... Kxf7 {[%clk 0:00:11.8]}
47. Qb7+ {[%clk 0:00:04.7]} 47... Ke6 {[%clk 0:00:09.5]} 48. Qc6+ {[%clk
0:00:05.2]} 48... Ke7 {[%clk 0:00:10.2]} 49. Qb7+ {[%clk 0:00:03.8]} 49... Nd7
{[%clk 0:00:10.8]} 0-1

[Event "*** Titled Tuesday Blitz"]
[Site "Chess.com"]
[Date "2021.02.16"]
[Round "2"]
[White "GianmarcoVaR"]
[Black "SHIVACalypso"]
[Result "1-0"]
[WhiteElo "2647"]
[BlackElo "2345"]
[TimeControl "180+1"]
[EndTime "10:19:51 PST"]
[Termination "GianmarcoVaR won by checkmate"]

1. Nf3 {[%clk 0:02:55.9]} 1... Nf6 {[%clk 0:02:59.5]} 2. g3 {[%clk 0:02:55.5]}
2... e6 {[%clk 0:03:00]} 3. Bg2 {[%clk 0:02:56]} 3... d5 {[%clk 0:03:00.6]} 4.
O-O {[%clk 0:02:56.9]} 4... Be7 {[%clk 0:03:01.2]} 5. c4 {[%clk 0:02:55.6]} 5...
O-O {[%clk 0:03:01.3]} 6. d4 {[%clk 0:02:55.3]} 6... dxc4 {[%clk 0:03:00.1]} 7.
Qc2 {[%clk 0:02:55.6]} 7... a6 {[%clk 0:02:57.1]} 8. Qxc4 {[%clk 0:02:55.9]}
8... b5 {[%clk 0:02:55.5]} 9. Qc2 {[%clk 0:02:56]} 9... Bb7 {[%clk 0:02:56]} 10.
Bd2 {[%clk 0:02:56.1]} 10... Be4 {[%clk 0:02:52.7]} 11. Qc1 {[%clk 0:02:56]}
11... c6 {[%clk 0:02:53.3]} 12. e3 {[%clk 0:02:40.3]} 12... Nbd7 {[%clk
0:02:30.9]} 13. Nc3 {[%clk 0:02:39.8]} 13... Bg6 {[%clk 0:02:20]} 14. Nh4 {[%clk
0:02:39.7]} 14... Rc8 {[%clk 0:02:19.4]} 15. Nxg6 {[%clk 0:02:39.5]} 15... hxg6
{[%clk 0:02:20.3]} 16. Qd1 {[%clk 0:02:17.9]} 16... c5 {[%clk 0:02:18.8]} 17.
Bb7 {[%clk 0:02:17.6]} 17... Rb8 {[%clk 0:02:13.2]} 18. Bxa6 {[%clk 0:02:16.7]}
18... Qa5 {[%clk 0:02:08.3]} 19. Nd5 {[%clk 0:01:52.7]} 19... Qxa6 {[%clk
0:02:00.1]} 20. Nxe7+ {[%clk 0:01:52.9]} 20... Kh7 {[%clk 0:01:57.6]} 21. Qf3
{[%clk 0:01:53.8]} 21... Qd6 {[%clk 0:01:42.1]} 22. Nc6 {[%clk 0:01:46.2]} 22...
Rb6 {[%clk 0:01:33.4]} 23. Na5 {[%clk 0:00:58.1]} 23... cxd4 {[%clk 0:01:31.9]}
24. exd4 {[%clk 0:00:58.6]} 24... Qxd4 {[%clk 0:01:30.4]} 25. Be3 {[%clk
0:00:58.7]} 25... Qxb2 {[%clk 0:01:22.6]} 26. Bxb6 {[%clk 0:00:48.7]} 26... Nxb6
{[%clk 0:01:23.5]} 27. Qb3 {[%clk 0:00:45.7]} 27... Qe5 {[%clk 0:01:21.6]} 28.
Rfe1 {[%clk 0:00:44.9]} 28... Qh5 {[%clk 0:01:20.4]} 29. Kg2 {[%clk 0:00:44.6]}
29... Nbd5 {[%clk 0:01:13]} 30. Qf3 {[%clk 0:00:43.4]} 30... Qh6 {[%clk
0:01:05.5]} 31. Nb3 {[%clk 0:00:16.5]} 31... g5 {[%clk 0:00:59.7]} 32. h3 {[%clk
0:00:14.8]} 32... Qg6 {[%clk 0:00:48.8]} 33. Rac1 {[%clk 0:00:14.6]} 33... Rd8
{[%clk 0:00:46]} 34. Red1 {[%clk 0:00:13.9]} 34... Ne4 {[%clk 0:00:42.3]} 35.
Nc5 {[%clk 0:00:08.4]} 35... Nd6 {[%clk 0:00:29.1]} 36. Kg1 {[%clk 0:00:05.6]}
36... Qh6 {[%clk 0:00:23.9]} 37. Ne4 {[%clk 0:00:04.8]} 37... f5 {[%clk
0:00:16.9]} 38. Nxd6 {[%clk 0:00:04.5]} 38... Rxd6 {[%clk 0:00:17.8]} 39. Kg2
{[%clk 0:00:04.2]} 39... Rd8 {[%clk 0:00:15]} 40. Rd3 {[%clk 0:00:04.1]} 40...
Qf6 {[%clk 0:00:14.3]} 41. Rcd1 {[%clk 0:00:04.1]} 41... Rf8 {[%clk 0:00:14.1]}
42. R1d2 {[%clk 0:00:04.2]} 42... Kg6 {[%clk 0:00:12.4]} 43. Rb3 {[%clk
0:00:03.5]} 43... Rh8 {[%clk 0:00:12.6]} 44. Rxb5 {[%clk 0:00:03.5]} 44... Qe5
{[%clk 0:00:10.7]} 45. Rbxd5 {[%clk 0:00:03.8]} 45... exd5 {[%clk 0:00:10.6]}
46. Rxd5 {[%clk 0:00:04.7]} 46... Qf6 {[%clk 0:00:10.1]} 47. Qd3 {[%clk
0:00:05.3]} 47... Re8 {[%clk 0:00:09.3]} 48. Rd6 {[%clk 0:00:05.5]} 48... Re6
{[%clk 0:00:09.9]} 49. Rd5 {[%clk 0:00:05.3]} 49... Qe7 {[%clk 0:00:09]} 50.
Qxf5+ {[%clk 0:00:04.9]} 50... Kh6 {[%clk 0:00:08.5]} 51. h4 {[%clk 0:00:05]}
51... gxh4 {[%clk 0:00:08.2]} 52. Qh5# {[%clk 0:00:05.2]} 1-0

[Event "*** Titled Tuesday Blitz"]
[Site "Chess.com"]
[Date "2021.02.16"]
[Round "2"]
[White "IljaJoke"]
[Black "TC2304"]
[Result "0-1"]
[WhiteElo "2523"]
[BlackElo "2330"]
[TimeControl "180+1"]
[EndTime "10:19:51 PST"]
[Termination "TC2304 won by resignation"]

1. e4 {[%clk 0:03:00.9]} 1... c5 {[%clk 0:03:00.5]} 2. Nf3 {[%clk 0:03:00.8]}
2... d6 {[%clk 0:03:01.2]} 3. d4 {[%clk 0:03:00.8]} 3... cxd4 {[%clk 0:03:02.1]}
4. Nxd4 {[%clk 0:03:01.2]} 4... Nf6 {[%clk 0:03:02.1]} 5. Nc3 {[%clk 0:02:55.3]}
5... a6 {[%clk 0:03:02.4]} 6. Be3 {[%clk 0:02:50]} 6... e5 {[%clk 0:03:02.6]} 7.
Nb3 {[%clk 0:02:49.3]} 7... Be7 {[%clk 0:03:01.4]} 8. f3 {[%clk 0:02:48.4]} 8...
Be6 {[%clk 0:02:59.6]} 9. Qd2 {[%clk 0:02:47.7]} 9... h5 {[%clk 0:03:00.2]} 10.
Nd5 {[%clk 0:02:41.5]} 10... Bxd5 {[%clk 0:02:56]} 11. exd5 {[%clk 0:02:42.4]}
11... Nbd7 {[%clk 0:02:56.2]} 12. O-O-O {[%clk 0:02:36.5]} 12... O-O {[%clk
0:02:48.9]} 13. Kb1 {[%clk 0:02:34.1]} 13... Rc8 {[%clk 0:02:48.1]} 14. c4
{[%clk 0:02:21]} 14... Nb6 {[%clk 0:02:43.7]} 15. Rc1 {[%clk 0:02:16.6]} 15...
Nfd7 {[%clk 0:02:42.6]} 16. g4 {[%clk 0:02:14.2]} 16... f5 {[%clk 0:02:40.4]}
17. gxf5 {[%clk 0:02:10.8]} 17... Rxf5 {[%clk 0:02:39.4]} 18. Bd3 {[%clk
0:02:07]} 18... Rxf3 {[%clk 0:02:35.6]} 19. Rcf1 {[%clk 0:02:03.6]} 19... Rxf1+
{[%clk 0:02:24]} 20. Rxf1 {[%clk 0:02:04.5]} 20... Nxc4 {[%clk 0:02:21.8]} 21.
Qe2 {[%clk 0:02:04.7]} 21... Nxe3 {[%clk 0:02:19.7]} 22. Qxe3 {[%clk 0:01:50.7]}
22... Nf6 {[%clk 0:01:18.8]} 23. Bf5 {[%clk 0:01:50.2]} 23... Rc4 {[%clk
0:01:09.7]} 24. Be6+ {[%clk 0:01:48.6]} 24... Kh8 {[%clk 0:01:05.2]} 25. Qg5
{[%clk 0:01:27.3]} 25... Rf4 {[%clk 0:00:55.7]} 26. Rg1 {[%clk 0:01:21.3]} 26...
Qf8 {[%clk 0:00:46]} 27. Rc1 {[%clk 0:01:09.4]} 27... Qe8 {[%clk 0:00:27.5]} 28.
Rg1 {[%clk 0:00:45.1]} 28... Ng4 {[%clk 0:00:27.4]} 29. Rxg4 {[%clk 0:00:28.9]}
29... Bxg5 {[%clk 0:00:26.9]} 30. Rxg5 {[%clk 0:00:29.7]} 30... Kh7 {[%clk
0:00:16.3]} 31. Rg2 {[%clk 0:00:18.4]} 31... Kh6 {[%clk 0:00:15.2]} 32. Nc1
{[%clk 0:00:16.6]} 32... g5 {[%clk 0:00:14.9]} 33. Nd3 {[%clk 0:00:16.4]} 33...
Rf1+ {[%clk 0:00:15.3]} 34. Kc2 {[%clk 0:00:16.2]} 34... Qa4+ {[%clk 0:00:15.2]}
35. Kc3 {[%clk 0:00:15.4]} 35... Qd4+ {[%clk 0:00:15]} 36. Kc2 {[%clk
0:00:15.3]} 36... Qc4+ {[%clk 0:00:13.1]} 37. Kd2 {[%clk 0:00:15.1]} 37... Qe4
{[%clk 0:00:10.4]} 38. Re2 {[%clk 0:00:12.3]} 38... Qh4 {[%clk 0:00:09.4]} 39.
h3 {[%clk 0:00:10.4]} 39... Rh1 {[%clk 0:00:07.6]} 40. Nf2 {[%clk 0:00:09.8]}
40... Qd4+ {[%clk 0:00:07.7]} 41. Kc2 {[%clk 0:00:09.8]} 41... Rh2 {[%clk
0:00:08.2]} 42. Ng4+ {[%clk 0:00:08.5]} 42... hxg4 {[%clk 0:00:07.6]} 43. Rxh2
{[%clk 0:00:09.2]} 43... g3 {[%clk 0:00:06.8]} 44. Re2 {[%clk 0:00:08.4]} 44...
g2 {[%clk 0:00:05]} 45. Rxg2 {[%clk 0:00:08]} 45... Qe4+ {[%clk 0:00:05.2]} 46.
Kc3 {[%clk 0:00:08.1]} 46... Qxg2 {[%clk 0:00:06.1]} 47. Kb4 {[%clk 0:00:08.6]}
47... Qe4+ {[%clk 0:00:06.3]} 48. Ka5 {[%clk 0:00:09.1]} 48... Qd4 {[%clk
0:00:06.5]} 49. b4 {[%clk 0:00:08]} 49... Kg6 {[%clk 0:00:05.7]} 50. a4 {[%clk
0:00:08.4]} 50... e4 {[%clk 0:00:06.1]} 51. b5 {[%clk 0:00:08.2]} 51... axb5
{[%clk 0:00:07]} 52. axb5 {[%clk 0:00:08.4]} 52... e3 {[%clk 0:00:07.7]} 53. b6
{[%clk 0:00:08.9]} 53... e2 {[%clk 0:00:07.8]} 54. h4 {[%clk 0:00:09.4]} 54...
Qc5+ {[%clk 0:00:08]} 55. Ka4 {[%clk 0:00:09.2]} 55... e1=Q {[%clk 0:00:08.5]}
56. h5+ {[%clk 0:00:09.4]} 56... Kh6 {[%clk 0:00:08.4]} 0-1

[Event "*** Titled Tuesday Blitz"]
[Site "Chess.com"]
[Date "2021.02.16"]
[Round "2"]
[White "fyall777"]
[Black "GadimbayliA"]
[Result "0-1"]
[WhiteElo "2519"]
[BlackElo "2849"]
[TimeControl "180+1"]
[EndTime "10:19:53 PST"]
[Termination "GadimbayliA won by checkmate"]

1. d4 {[%clk 0:02:55.1]} 1... d5 {[%clk 0:02:59.1]} 2. c4 {[%clk 0:02:46.4]}
2... e5 {[%clk 0:02:58.8]} 3. dxe5 {[%clk 0:02:45.9]} 3... d4 {[%clk 0:02:59.7]}
4. a3 {[%clk 0:02:44.4]} 4... Nc6 {[%clk 0:02:59.6]} 5. Nf3 {[%clk 0:02:43.4]}
5... Nge7 {[%clk 0:03:00.1]} 6. e3 {[%clk 0:02:42.2]} 6... Bg4 {[%clk 0:02:59]}
7. h3 {[%clk 0:02:39]} 7... Bxf3 {[%clk 0:02:54.1]} 8. Qxf3 {[%clk 0:02:38.2]}
8... Ng6 {[%clk 0:02:53.2]} 9. Qd5 {[%clk 0:02:30.6]} 9... Ngxe5 {[%clk
0:02:46.7]} 10. f4 {[%clk 0:02:21.2]} 10... Qh4+ {[%clk 0:02:38.8]} 11. Ke2
{[%clk 0:02:08]} 11... Ng6 {[%clk 0:02:31.2]} 12. Qg5 {[%clk 0:01:37.3]} 12...
Qxg5 {[%clk 0:02:29.6]} 13. fxg5 {[%clk 0:01:37.4]} 13... O-O-O {[%clk
0:02:30.1]} 14. h4 {[%clk 0:01:35.3]} 14... Bd6 {[%clk 0:02:19.5]} 15. Nd2
{[%clk 0:01:23.4]} 15... dxe3 {[%clk 0:02:09.6]} 16. Kxe3 {[%clk 0:01:21.4]}
16... Bf4+ {[%clk 0:01:59.4]} 17. Ke2 {[%clk 0:01:11.5]} 17... Nd4+ {[%clk
0:01:59.6]} 18. Kf2 {[%clk 0:00:55.9]} 18... Bxd2 {[%clk 0:01:45.2]} 19. Bxd2
{[%clk 0:00:55.1]} 19... Nb3 {[%clk 0:01:45.6]} 20. Bc3 {[%clk 0:00:53.4]} 20...
Nxa1 {[%clk 0:01:44]} 21. h5 {[%clk 0:00:50.4]} 21... Nf4 {[%clk 0:01:39.4]} 22.
g3 {[%clk 0:00:49.9]} 22... Ne6 {[%clk 0:01:39.4]} 23. Bh3 {[%clk 0:00:40.7]}
23... Nb3 {[%clk 0:01:36]} 24. h6 {[%clk 0:00:29.1]} 24... Nd4 {[%clk
0:01:27.1]} 25. hxg7 {[%clk 0:00:27.4]} 25... Rhg8 {[%clk 0:01:26.2]} 26. Bxe6+
{[%clk 0:00:23.8]} 26... Nxe6 {[%clk 0:01:24.9]} 27. Rxh7 {[%clk 0:00:23.6]}
27... Nxg5 {[%clk 0:01:24.3]} 28. Rh4 {[%clk 0:00:19.6]} 28... Ne6 {[%clk
0:01:19.1]} 29. Bf6 {[%clk 0:00:19.4]} 29... Nxg7 {[%clk 0:01:02.4]} 30. Bxd8
{[%clk 0:00:17.8]} 30... Kxd8 {[%clk 0:00:59.7]} 31. Rg4 {[%clk 0:00:17.3]}
31... Ke7 {[%clk 0:00:59.9]} 32. c5 {[%clk 0:00:16.8]} 32... Kf8 {[%clk
0:00:58.1]} 33. Rb4 {[%clk 0:00:14]} 33... b6 {[%clk 0:00:57.4]} 34. Ra4 {[%clk
0:00:14.2]} 34... Ne6 {[%clk 0:00:56.4]} 35. Rxa7 {[%clk 0:00:13.2]} 35... bxc5
{[%clk 0:00:56.8]} 36. Ra8+ {[%clk 0:00:13.4]} 36... Kg7 {[%clk 0:00:56.7]} 37.
Rxg8+ {[%clk 0:00:13.9]} 37... Kxg8 {[%clk 0:00:57.6]} 38. a4 {[%clk 0:00:14.4]}
38... c6 {[%clk 0:00:38.5]} 39. a5 {[%clk 0:00:14.6]} 39... Nc7 {[%clk
0:00:36.6]} 40. Kf3 {[%clk 0:00:15]} 40... Kg7 {[%clk 0:00:34.7]} 41. Kf4 {[%clk
0:00:15.3]} 41... Kf6 {[%clk 0:00:34.5]} 42. g4 {[%clk 0:00:16.2]} 42... Na6
{[%clk 0:00:32.4]} 43. b3 {[%clk 0:00:15.9]} 43... Nc7 {[%clk 0:00:31.5]} 44.
Ke4 {[%clk 0:00:16.2]} 44... Kg5 {[%clk 0:00:29.1]} 45. Ke5 {[%clk 0:00:16.4]}
45... Na6 {[%clk 0:00:24.9]} 46. Kd6 {[%clk 0:00:16.2]} 46... Kxg4 {[%clk
0:00:19.1]} 47. Kxc6 {[%clk 0:00:16.6]} 47... f5 {[%clk 0:00:19.6]} 48. Kb6
{[%clk 0:00:16.9]} 48... f4 {[%clk 0:00:11.6]} 49. Kxa6 {[%clk 0:00:16.4]} 49...
f3 {[%clk 0:00:12]} 50. Kb7 {[%clk 0:00:13.6]} 50... f2 {[%clk 0:00:12.2]} 51.
a6 {[%clk 0:00:14.5]} 51... f1=Q {[%clk 0:00:12.9]} 52. a7 {[%clk 0:00:15.4]}
52... Qb5+ {[%clk 0:00:13.3]} 53. Ka8 {[%clk 0:00:16.3]} 53... Qc6+ {[%clk
0:00:11.5]} 54. Kb8 {[%clk 0:00:15.5]} 54... Qb6+ {[%clk 0:00:12.4]} 55. Ka8
{[%clk 0:00:15.5]} 55... Qc7 {[%clk 0:00:12.6]} 56. b4 {[%clk 0:00:14.8]} 56...
Qc8# {[%clk 0:00:13.5]} 0-1

[Event "*** Titled Tuesday Blitz"]
[Site "Chess.com"]
[Date "2021.02.16"]
[Round "2"]
[White "MPGM"]
[Black "julinha97"]
[Result "0-1"]
[WhiteElo "2604"]
[BlackElo "2264"]
[TimeControl "180+1"]
[EndTime "10:19:53 PST"]
[Termination "julinha97 won by checkmate"]

1. c4 {[%clk 0:03:00.9]} 1... e5 {[%clk 0:02:59.3]} 2. Nc3 {[%clk 0:03:00]} 2...
Nf6 {[%clk 0:02:59.3]} 3. g3 {[%clk 0:02:59.1]} 3... d5 {[%clk 0:02:59.4]} 4.
cxd5 {[%clk 0:02:58.6]} 4... Nxd5 {[%clk 0:03:00.3]} 5. Bg2 {[%clk 0:02:58]}
5... Nb6 {[%clk 0:02:59.8]} 6. Nf3 {[%clk 0:02:56.6]} 6... Nc6 {[%clk
0:02:59.4]} 7. O-O {[%clk 0:02:57.2]} 7... Be7 {[%clk 0:02:59.5]} 8. Rb1 {[%clk
0:02:52.8]} 8... O-O {[%clk 0:02:58.7]} 9. b4 {[%clk 0:02:51.8]} 9... f6 {[%clk
0:02:56.8]} 10. b5 {[%clk 0:02:50.3]} 10... Nd4 {[%clk 0:02:56.4]} 11. a4 {[%clk
0:02:40.6]} 11... a5 {[%clk 0:02:47]} 12. bxa6 {[%clk 0:02:14.3]} 12... Rxa6
{[%clk 0:02:45.4]} 13. e3 {[%clk 0:02:06.7]} 13... Nxf3+ {[%clk 0:02:44]} 14.
Qxf3 {[%clk 0:02:00.4]} 14... c6 {[%clk 0:02:39.1]} 15. Rd1 {[%clk 0:01:41]}
15... Nxa4 {[%clk 0:02:30]} 16. Bf1 {[%clk 0:01:07.1]} 16... Ra8 {[%clk
0:02:13.2]} 17. Ra1 {[%clk 0:01:04.4]} 17... b5 {[%clk 0:01:16.9]} 18. Nxa4
{[%clk 0:00:53.7]} 18... Rxa4 {[%clk 0:01:17.5]} 19. Rxa4 {[%clk 0:00:52]} 19...
bxa4 {[%clk 0:01:18.4]} 20. Qxc6 {[%clk 0:00:51.8]} 20... Bd7 {[%clk 0:01:18.4]}
21. Qc4+ {[%clk 0:00:44.2]} 21... Kh8 {[%clk 0:01:18.6]} 22. d4 {[%clk
0:00:44.8]} 22... Qc8 {[%clk 0:00:48.5]} 23. dxe5 {[%clk 0:00:41.3]} 23... fxe5
{[%clk 0:00:42.6]} 24. Bb2 {[%clk 0:00:20.8]} 24... Bf6 {[%clk 0:00:38.6]} 25.
Qxc8 {[%clk 0:00:17.9]} 25... Bxc8 {[%clk 0:00:38.3]} 26. Bb5 {[%clk 0:00:15.7]}
26... Bg4 {[%clk 0:00:37.8]} 27. Rd2 {[%clk 0:00:15.3]} 27... Ra8 {[%clk
0:00:35.4]} 28. Ba3 {[%clk 0:00:10.9]} 28... g6 {[%clk 0:00:28.4]} 29. Kg2
{[%clk 0:00:09.9]} 29... e4 {[%clk 0:00:26.1]} 30. h3 {[%clk 0:00:07.4]} 30...
Bf3+ {[%clk 0:00:26.3]} 31. Kh2 {[%clk 0:00:08.1]} 31... Rc8 {[%clk 0:00:22.1]}
32. g4 {[%clk 0:00:05.9]} 32... Be5+ {[%clk 0:00:20.5]} 33. Kg1 {[%clk
0:00:05.7]} 33... Rb8 {[%clk 0:00:18.2]} 34. Be2 {[%clk 0:00:02.8]} 34... Rb1+
{[%clk 0:00:17.5]} 35. Bf1 {[%clk 0:00:03.5]} 35... Ra1 {[%clk 0:00:14.4]} 36.
Bb2 {[%clk 0:00:02.5]} 36... Bxb2 {[%clk 0:00:14.5]} 37. Rxb2 {[%clk 0:00:03.4]}
37... a3 {[%clk 0:00:14.1]} 38. Rb8+ {[%clk 0:00:03.5]} 38... Kg7 {[%clk
0:00:14.5]} 39. Rb7+ {[%clk 0:00:02.1]} 39... Kh6 {[%clk 0:00:14.9]} 40. Ra7
{[%clk 0:00:02]} 40... Be2 {[%clk 0:00:14.9]} 41. Kh2 {[%clk 0:00:02.3]} 41...
Bxf1 {[%clk 0:00:14.5]} 42. h4 {[%clk 0:00:02]} 42... g5 {[%clk 0:00:13.6]} 43.
h5 {[%clk 0:00:01.7]} 43... Bc4 {[%clk 0:00:09.7]} 44. Kg3 {[%clk 0:00:01.6]}
44... a2 {[%clk 0:00:09.3]} 45. Rc7 {[%clk 0:00:02]} 45... Rg1+ {[%clk
0:00:09.1]} 46. Kh2 {[%clk 0:00:02.5]} 46... a1=Q {[%clk 0:00:08.9]} 47. Rc6+
{[%clk 0:00:02]} 47... Kg7 {[%clk 0:00:09.2]} 48. h6+ {[%clk 0:00:02.2]} 48...
Kf8 {[%clk 0:00:08.1]} 49. Rc8+ {[%clk 0:00:02.3]} 49... Ke7 {[%clk 0:00:08.4]}
50. Rc7+ {[%clk 0:00:03.2]} 50... Kd6 {[%clk 0:00:08.8]} 51. Rxc4 {[%clk
0:00:01.6]} 51... Rh1+ {[%clk 0:00:09.2]} 52. Kg2 {[%clk 0:00:01.8]} 52... Qg1#
{[%clk 0:00:09.4]} 0-1

[Event "*** Titled Tuesday Blitz"]
[Site "Chess.com"]
[Date "2021.02.16"]
[Round "2"]
[White "IAgrest"]
[Black "Dave_ChessMate"]
[Result "1-0"]
[WhiteElo "2286"]
[BlackElo "2434"]
[TimeControl "180+1"]
[EndTime "10:19:54 PST"]
[Termination "IAgrest won on time"]

1. e4 {[%clk 0:03:00.9]} 1... c5 {[%clk 0:02:59.3]} 2. Nf3 {[%clk 0:03:00.8]}
2... Nc6 {[%clk 0:02:59.6]} 3. d4 {[%clk 0:03:01.3]} 3... cxd4 {[%clk
0:03:00.2]} 4. Nxd4 {[%clk 0:03:02.2]} 4... e5 {[%clk 0:03:01]} 5. Nb5 {[%clk
0:03:01.8]} 5... d6 {[%clk 0:02:57.5]} 6. N1c3 {[%clk 0:03:01.4]} 6... a6 {[%clk
0:02:56.4]} 7. Na3 {[%clk 0:03:01.9]} 7... b5 {[%clk 0:02:56.4]} 8. Nd5 {[%clk
0:03:01.4]} 8... Nge7 {[%clk 0:02:56.8]} 9. c4 {[%clk 0:02:56.9]} 9... Nxd5
{[%clk 0:02:45]} 10. exd5 {[%clk 0:02:53.4]} 10... Nd4 {[%clk 0:02:45]} 11. Nc2
{[%clk 0:02:44.7]} 11... Nxc2+ {[%clk 0:02:38.2]} 12. Qxc2 {[%clk 0:02:45.6]}
12... g6 {[%clk 0:02:20.6]} 13. cxb5 {[%clk 0:02:39.5]} 13... Bg7 {[%clk
0:02:20.8]} 14. Qc6+ {[%clk 0:02:33.6]} 14... Bd7 {[%clk 0:02:20.8]} 15. Qxd6
{[%clk 0:02:32]} 15... axb5 {[%clk 0:01:30.6]} 16. Bd2 {[%clk 0:02:29]} 16...
Qh4 {[%clk 0:01:24.2]} 17. Be2 {[%clk 0:02:11.3]} 17... e4 {[%clk 0:01:22.1]}
18. Bc3 {[%clk 0:02:01.4]} 18... Bxc3+ {[%clk 0:01:16.7]} 19. bxc3 {[%clk
0:02:02.3]} 19... Qe7 {[%clk 0:01:17.3]} 20. Qxe7+ {[%clk 0:01:55.8]} 20... Kxe7
{[%clk 0:01:18.2]} 21. O-O {[%clk 0:01:55.2]} 21... Kd6 {[%clk 0:01:13.2]} 22.
c4 {[%clk 0:01:51.8]} 22... bxc4 {[%clk 0:01:11.8]} 23. Bxc4 {[%clk 0:01:52.7]}
23... f5 {[%clk 0:01:11.6]} 24. Rab1 {[%clk 0:01:49.6]} 24... Rhb8 {[%clk
0:01:07.6]} 25. g3 {[%clk 0:01:46.5]} 25... g5 {[%clk 0:00:54]} 26. Rfe1 {[%clk
0:01:37.8]} 26... Ke5 {[%clk 0:00:49.5]} 27. Bb3 {[%clk 0:01:25.6]} 27... f4
{[%clk 0:00:44.4]} 28. Rbc1 {[%clk 0:01:14.2]} 28... Rc8 {[%clk 0:00:42.4]} 29.
h3 {[%clk 0:00:45.7]} 29... Bxh3 {[%clk 0:00:38.8]} 30. Rc6 {[%clk 0:00:39.1]}
30... Bd7 {[%clk 0:00:24.2]} 31. Rh6 {[%clk 0:00:38.3]} 31... Bf5 {[%clk
0:00:21.8]} 32. d6 {[%clk 0:00:33.7]} 32... Rd8 {[%clk 0:00:19]} 33. Rd1 {[%clk
0:00:29.7]} 33... Ra5 {[%clk 0:00:16.2]} 34. Rd2 {[%clk 0:00:14.7]} 34... fxg3
{[%clk 0:00:13.8]} 35. fxg3 {[%clk 0:00:14.4]} 35... e3 {[%clk 0:00:13.5]} 36.
Re2 {[%clk 0:00:13.2]} 36... Kd4 {[%clk 0:00:10.9]} 37. Re1 {[%clk 0:00:10.9]}
37... Bd3 {[%clk 0:00:06.2]} 38. Rh5 {[%clk 0:00:09.4]} 38... Rf5 {[%clk
0:00:05.9]} 39. Rh6 {[%clk 0:00:09.3]} 39... Rdf8 {[%clk 0:00:05.6]} 40. d7
{[%clk 0:00:08.6]} 40... Rd8 {[%clk 0:00:02.3]} 41. Rd6+ {[%clk 0:00:08.5]}
41... Kc3 {[%clk 0:00:02.7]} 42. Rc1+ {[%clk 0:00:07.9]} 42... Kb4 {[%clk
0:00:01.5]} 43. Rxd3 {[%clk 0:00:07.6]} 43... Re5 {[%clk 0:00:02.1]} 44. Re1
{[%clk 0:00:07.3]} 44... e2 {[%clk 0:00:01.3]} 45. Kf2 {[%clk 0:00:06.8]} 45...
Rf8+ {[%clk 0:00:01]} 46. Rf3 {[%clk 0:00:06.7]} 46... Rd8 {[%clk 0:00:01.4]}
47. Rxe2 {[%clk 0:00:06.5]} 47... Rxe2+ {[%clk 0:00:01.1]} 48. Kxe2 {[%clk
0:00:07.4]} 48... Rxd7 {[%clk 0:00:02]} 49. Rf7 {[%clk 0:00:06.6]} 49... Rd6
{[%clk 0:00:01.7]} 50. Rxh7 {[%clk 0:00:06.6]} 50... Re6+ {[%clk 0:00:02.3]} 51.
Bxe6 {[%clk 0:00:06.3]} 1-0